Cogmind - Beta 16 @@@ ROGUE MODE // 2025.11.28 @ 14:52:39 Player: Konrad Result: Destroyed by CQ-9F3(R) with Subdweller Laser Performance ------------- Evolutions (0) 0 Regions Visited (2) 400 Robots Destroyed (7) 35 Value Destroyed (178) 178 Prototype IDs (1) 20 Alien Tech Used (0) 0 Bonus (0) 0 TOTAL SCORE: 633 Bonus ------- None Cogmind --------- Core Integrity 0/250 Matter 373/450 Energy 100/100 System Corruption 0% Temperature Cool (71) Movement Core (250) Ox4 Location -10/Subcaves Parts ------- > --- POWER (1) -------- (None) > --- PROPULSION (2) --- (None) > --- UTILITY (2) ------ Medium Storage Unit Large Matter Pod > --- WEAPON (2) ------- (None) > --- INVENTORY (10) --- Spiked Treads Medium Battery (150) Improved Terrain Scanner Terrain Scan Processor Seismic Detector Medium Laser Multitool Peak State ------------ > --- POWER ------------ Light Ion Engine > --- PROPULSION ------- Aluminum Leg Aluminum Leg > --- UTILITY ---------- Medium Storage Unit Large Matter Pod > --- WEAPON ----------- Heavy Riot Gun Battle Cannon > --- INVENTORY -------- Cooled Ion Engine Spiked Treads Medium Battery Improved Terrain Scanner Terrain Scan Processor Seismic Detector Medium Laser Subdweller Beam Cannon Assault Rifle Multitool [Rating: 12] Favorites ----------- Power Light Ion Engine Engine Light Ion Engine Propulsion Aluminum Leg Leg Aluminum Leg Utility Medium Storage Unit Device Seismic Detector Storage Medium Storage Unit Processor Terrain Scan Processor Weapon Assault Rifle Energy Gun Medium Laser Energy Cannon Subdweller Beam Cannon Ballistic Gun Assault Rifle Ballistic Cannon Battle Cannon Build | -11 -10 -10 ------- Run | Yrd Mat Sub Slots Evolved . | . . . Power . | . . . Propulsion . | . . . Utility . | . . . Weapon . | . . . Parts Attached 17 | 7 5 5 Power 4 | 1 2 1 Engine 4 | 1 2 1 Core . | . . . Reactor . | . . . Propulsion 2 | 2 . . Treads . | . . . Leg 2 | 2 . . Wheel . | . . . Hover . | . . . Flight . | . . . Utility 5 | 2 3 . Device 2 | 2 . . Storage 2 | . 2 . Processor 1 | . 1 . Hackware . | . . . Protection . | . . . Artifact . | . . . Weapon 6 | 2 . 4 Energy Gun 2 | 1 . 1 Energy Cannon 1 | . . 1 Ballistic Gun 2 | 1 . 1 Ballistic Cannon 1 | . . 1 Launcher . | . . . Special Weapon . | . . . Impact Weapon . | . . . Slashing Weapon . | . . . Piercing Weapon . | . . . Special Melee Weapon . | . . . Unidentified Prototypes 1 | . 1 . Parts Lost 9 | . . 9 Power 2 | . . 2 Propulsion 2 | . . 2 Utility . | . . . Weapon 5 | . . 5 Highest Loss Streak 9 | . . 9 To Critical Strikes 1 | . . 1 Average Backups 5 | 3 5 6 Power . | . . . Propulsion . | 1 . . Utility 3 | . 4 4 Weapon . | 1 . . Tool/Special . | . . . Unused Backups 24 | 2 15 7 Power 5 | . 5 . Propulsion 4 | 2 1 1 Utility 8 | . 3 5 Weapon 6 | . 6 . Tool/Special 1 | . . 1 Average Slot Usage (%) 98 | . 99 96 Engine 13 | . 14 13 Leg 27 | . 28 27 Device 3 | . 7 . Storage 22 | . 18 28 Energy Gun 13 | . 14 12 Ballistic Gun 13 | . 14 12 Peak Build Rating 12 | 7 10 12 Average Rating 7 | 4 7 8 On Entrance 5 | . 7 8 Avg Prop Armor Cover (%) . | . . . Naked Turns . | . . . Heaviest Build 23 | 9 22 23 Greatest Support 20 | 20 20 20 Greatest Overweight (x) 6 | . 1 6 Average Overweight (x) . | . . . Largest Inventory Capacity 10 | 5 10 10 Average Capacity 8 | 5 8 10 Most Carried 10 | 5 10 10 Average Carried 5 | 3 5 7 Final Capacity 10 | 5 10 10 Final Carried 7 | 5 5 7 Class Distribution -------------------- 100% | Mutant Dominant Class ---------------- Mutant | -10/Materials Mutant | -10/Subcaves Resources | -11 -10 -10 ----------- Run | Yrd Mat Sub Matter Collected 525 | 300 29 196 Remotely . | . . . Salvage Created 246 | 75 29 142 Parts 14 | 7 1 6 Haulers Intercepted . | . . . Recyclers Shooed . | . . . Parts Field Recycled . | . . . Retrieved Matter . | . . . Parts Self-Destructed . | . . . Prevented . | . . . Parts Restored . | . . . Kills | -11 -10 -10 ------- Run | Yrd Mat Sub Combat Hostiles Destroyed 4 | 1 . 3 Guns 2 | 1 . 1 Cannons 2 | . . 2 Classes Destroyed 5 | 3 1 1 Worker 1 | 1 . . Tunneler 1 | 1 . . Watcher 1 | . 1 . Grunt 1 | 1 . . Subdweller 3 | . . 3 Best Kill Streak 2 | 2 1 2 Combat Bots Only 2 | 1 . 2 Max Kills in Single Turn 2 | 2 1 1 Gunslinging . | . . . Exploded . | . . . Melee . | . . . Uniques/NPCs Destroyed . | . . . Combat | -11 -10 -10 -------- Run | Yrd Mat Sub Hostile Shots Fired 82 | 5 . 77 Missed 27 | 2 . 25 Hits 55 | 3 . 52 Projectile 55 | 3 . 52 Critical Strikes 4 | . . 4 Damage Taken 1121 | 32 . 1089 Core 256 | 11 . 245 Absorbed by Shields . | . . . Core Remaining (%) 95 | 95 . . Volleys Fired 30 | 11 1 18 Largest 2 | 2 2 2 Hottest 110 | 70 70 110 Shots Fired 53 | 21 2 30 Gun 42 | 21 2 19 Cannon 11 | . . 11 Launcher . | . . . Special . | . . . Kinetic 31 | 10 1 20 Thermal 18 | 11 1 6 Explosive . | . . . Electromagnetic 4 | . . 4 Robot Hit Streak 9 | 3 2 9 Robot Miss Streak 3 | 3 . 3 Penetration Max . | . . . Secondary Targets . | . . . Shots Hit Robots 26 | 7 1 18 Core Hits 11 | 4 1 6 Critical Kills . | . . . Critical Parts Destroyed . | . . . Critical Strikes 1 | . . 1 Blast 1 | . . 1 Melee Attacks . | . . . Impact . | . . . Slashing . | . . . Piercing . | . . . Sneak Attacks . | . . . Combat Hostiles . | . . . Follow-up Attacks . | . . . Damage Inflicted 428 | 98 13 317 Guns 267 | 98 13 156 Cannons 161 | . . 161 Explosions . | . . . Melee . | . . . Ramming . | . . . Kinetic 266 | 35 . 231 Thermal 131 | 63 13 55 Explosive . | . . . Electromagnetic 31 | . . 31 Impact . | . . . Slashing . | . . . Piercing . | . . . Highest Corruption . | . . . Average Corruption . | . . . Corruption Purged . | . . . Corruption Blocked . | . . . Overload Shots . | . . . Overflow Damage . | . . . Projectiles . | . . . Explosions . | . . . Melee . | . . . Knockbacks . | . . . Impact . | . . . Kinetic . | . . . Secondary . | . . . Self-Inflicted Damage . | . . . Shots . | . . . Rammed . | . . . Targets Rammed . | . . . Kicked . | . . . Crushed . | . . . Highest Temperature 263 | 54 9 263 Average Temperature 53 | 20 6 117 Received Heat Transfer 816 | 18 . 798 Siege Activations . | . . . Martial Activations . | . . . Shielding Activations . | . . . Robots Disrupted . | . . . Combat Hostiles . | . . . Robots Corrupted . | . . . Combat Hostiles . | . . . Parts Fried . | . . . Impact Corruptions . | . . . Robots Melted . | . . . Combat Hostiles . | . . . Parts Melted . | . . . Heat Transferred 296 | 185 37 74 Parts Sabotaged . | . . . Parts Stolen . | . . . Parts Stripped . | . . . Power Chain Reactions . | . . . Alert | -11 -10 -10 ------- Run | Yrd Mat Sub Maximum Alert Level . | . . . Low Security (%) 100 | 100 100 . Level 1 . | . . . Level 2 . | . . . Level 3 . | . . . Level 4 . | . . . Level 5 . | . . . High Security . | . . . Max Security . | . . . Peak Influence 25 | 25 7 . Initial . | . . . Average 1 | 3 . . Influence Increases 38 | 30 8 . Destroy 0b10 Robot/C 20 | 20 . . Destroy 0b10 Robot/NC 15 | 10 5 . Destroy Leader 2 | . 2 . Successful Hack 1 | . 1 . Influence Decreases 38 | 30 8 . Time Decay 38 | 30 8 . Squads Dispatched 1 | . 1 . Investigation 1 | . 1 . Extermination . | . . . Reinforcement . | . . . Assault . | . . . Garrison . | . . . Intercept . | . . . Searches Triggered . | . . . Construction Impeded . | . . . Haulers Reinforced . | . . . Active Scanning Responses . | . . . Cargo Convoy Interrupts . | . . . Stealth | -11 -10 -10 --------- Run | Yrd Mat Sub Distress Signals . | . . . Communications Jammed . | . . . Distress Signals . | . . . Times Spotted 9 | 1 . 8 Peak Tracking Total 7 | 1 . 7 Tactical Retreats . | . . . Traps | -11 -10 -10 ------- Run | Yrd Mat Sub Traps Triggered . | . . . Indirectly . | . . . Trap Hack Attempts . | . . . Triggered . | . . . Disarmed . | . . . Reprogrammed . | . . . Reused . | . . . Traps Extracted . | . . . Installed . | . . . Triggered . | . . . Machines | -11 -10 -10 ---------- Run | Yrd Mat Sub Machines Disabled . | . . . Max in Single Turn . | . . . Machines Repaired . | . . . Machines Dismantled . | . . . Machines Sabotaged . | . . . Overloaded Fab Kills . | . . . Hacking | -11 -10 -10 --------- Run | Yrd Mat Sub Machines Accessed 2 | . 2 . Terminals 1 | . 1 . Fabricators . | . . . Repair Stations . | . . . Recycling Units 1 | . 1 . Scanalyzers . | . . . Garrison Access . | . . . Total Hacks 11 | . 11 . Successful 11 | . 11 . Failed . | . . . Catastrophic . | . . . Database Lockouts . | . . . Manual . | . . . Terminals 1 | . 1 . Fabricators . | . . . Repair Stations . | . . . Recycling Units 10 | . 10 . Scanalyzers . | . . . Garrison Access . | . . . Terminal Hacks 1 | . 1 . Record 1 | . 1 . Fabricator Hacks . | . . . Repair Station Hacks . | . . . Recycling Unit Hacks 10 | . 10 . Recycle Component 9 | . 9 . Report Inventory 1 | . 1 . Scanalyzer . | . . . Garrison Access Hacks . | . . . Unauthorized Hacks . | . . . Terminals . | . . . Fabricators . | . . . Repair Stations . | . . . Recycling Units . | . . . Scanalyzers . | . . . Garrison Access . | . . . Data Cores Recovered . | . . . Used . | . . . Hacking Detections 2 | . 2 . Full Trace Events 1 | . 1 . Feedback Events . | . . . Feedback Blocked . | . . . Robot Schematics Acquired . | . . . Robots Built . | . . . Authchips . | . . . Time . | . . . Total Robot Build Rating . | . . . Part Schematics Acquired . | . . . Parts Built . | . . . Authchips . | . . . Time . | . . . Total Part Build Rating . | . . . Part Studies Acquired . | . . . Parts Repaired . | . . . Time . | . . . Parts Recycled 9 | . 9 . Recycled Matter . | . . . Retrieved Matter . | . . . Retrieved Components . | . . . Parts Scanalyzed . | . . . Part Schematics Acquired . | . . . Parts Damaged . | . . . Bothacking | -11 -10 -10 ------------ Run | Yrd Mat Sub Used RIF Installer . | . . . Robots Hacked . | . . . Non-combat . | . . . Combat . | . . . Robot Hacks Applied . | . . . Relay Couplers Released . | . . . Fabnet Peak Effective % . | . . . Robots Rewired . | . . . Allies Hacked . | . . . Hacks Repelled . | . . . Allies | -11 -10 -10 -------- Run | Yrd Mat Sub Total Allies . | . . . Largest Group . | . . . Highest-Rated Group . | . . . Highest-Rated Ally . | . . . Total Orders . | . . . Ally Attacks . | . . . Total Damage . | . . . Kills . | . . . Allies Corrupted . | . . . Allies Melted . | . . . Intel | -11 -10 -10 ------- Run | Yrd Mat Sub Active Infowar (turns) 194 | 93 101 . Seismic 194 | 93 101 . Robot Analysis Total . | . . . Derelict Logs Recovered 1 | . . 1 Drone Launches . | . . . Drone Recoveries . | . . . Exploration | -11 -10 -10 ------------- Run | Yrd Mat Sub Turns Passed 908 | 253 366 289 Spaces Moved 632 | 183 271 178 Core 32 | 29 . 3 Treads . | . . . Legs 600 | 154 271 175 Wheels . | . . . Hover . | . . . Flight . | . . . Fastest Speed 50 | 50 120 120 Average Speed 118 | 108 122 124 Slowest Speed 350 | 120 190 350 Overloaded Moves . | . . . Propulsion Burnouts . | . . . Robots Hopped . | . . . Potential Cave-ins . | . . . Cave-ins Triggered . | . . . Exploration Rate (%) 10 | 9 17 6 Regions Visited 2 Branch Regions 1 Pre-discovered Areas . | . . . Known Exits Taken . | . . . Unknown Exits Taken 2 | 1 1 . Scrap Searched 6 | . . 6 Spaces Dug . | . . . Terrain Destroyed . | . . . Melee . | . . . Projectile . | . . . AOE . | . . . Terrain Rammed . | . . . Walls Destroyed . | . . . Machines Disabled . | . . . Actions | -11 -10 -10 --------- Run | Yrd Mat Sub Total 740 | 216 308 216 Wait 5 | 1 . 4 Move 630 | 182 270 178 Hop . | . . . Pick Up 41 | 13 20 8 Fast Attach 1 | 1 . . Attach 13 | 6 3 4 Detach 1 | . 1 . Swap 5 | . 3 2 Drop 14 | 2 10 2 Fire 30 | 11 1 18 Melee . | . . . Ram . | . . . Kick . | . . . Crush . | . . . Escape Stasis . | . . . Rewire . | . . . Trap . | . . . Miscellaneous . | . . . Route ------- -11/Scrapyard -10/Materials -10/Subcaves History --------- Turn | Location | Event 2 | -11/Scrapyard | Met Revision 17 128 | -11/Scrapyard | Discovered new exit (range 8) 254 | -11/Scrapyard | Entered Materials 345 | -10/Materials | Build established: Mutant 602 | -10/Materials | Discovered new exit (range 15) 620 | -10/Materials | Entered Subcaves 621 | -10/Subcaves | Approached by a straggling Scientist 748 | -10/Subcaves | Learned Materials stockpile data 783 | -10/Subcaves | Disturbed a concealed Subdweller 827 | -10/Subcaves | Ambushed by swarm of Subdwellers 881 | -10/Subcaves | Lost 4 allies 900 | -10/Subcaves | Core integrity fell below 50% 906 | -10/Subcaves | Core integrity fell below 20% 909 | -10/Subcaves | Destroyed by CQ-9F3(R) with Subdweller Laser Last Messages --------------- 00875_ TY-XLD(R) Disposable Heat Sink blasted off. 00876_ Critical hit (Meltdown: +250). 00879_ Battle Cannon destroyed. 00880_ SP-FI8(R) affixes Scrap Shield Fragment to Scrap Shield. 00883_ Acquired Sub. Machine Gun. [Achievement: There's More Where That Came From] 00886_ NN-52K(c) destroyed. 00891_ K6-4IQ(R) affixes Scrap Shield Fragment to Scrap Shield. 00891_ Aluminum Leg destroyed. 00895_ Assault Rifle destroyed. 00896_ SP-FI8(R) destroyed. 00896_ TY-XLD(R) affixes Scrap Shield Fragment to Scrap Shield. 00899_ Sub. Machine Gun destroyed. 00899_ K6-4IQ(R) destroyed. 00901_ Critical hit (Destroy). 00901_ Sub. Beam Cannon destroyed. 00901_ CQ-9F3(R) affixes Scrap Shield Fragment to Scrap Shield. 00903_ Critical hit (Meltdown: +290). 00904_ Cld. Ion Engine destroyed. [Achievement: First Step to Greatness] Map ----- +----------------------------------------------------+ | ?????????????????????????????????????????????????? | | ?????????????????????????????????????????????????? | | ?????????????????????????????????????????????????? | | ?????????????????????????????????????????????????? | | ?????????????????????????????????????????????????? | | ?????????????????????????????????????????????????? | | ?????????????????????????????????????????????????? | | ?????????????????????????????????????????????????? | | ?????????????????????????????????????????????????? | | ?????????????????????????????????????????????????? | | ?????????????????????????????????????????????????? | | ?????????????????????????????????????????????????? | | ?????????????????????????????????????????????????? | | ?????????????????????????????????????????????????? | | ?????????????????????????????????????????????????? | | ?????????????????????????????????????????????????? | | ?????????????????????????????????????????????????? | | ?????????????????????????????????????????????????? | | ?????????????????????????????????????????????????? | | ?????????????????????????????????????????????????? | | ?????????????????????????????????????????????????? | | ?????????????????????????????????????????????????? | | ?????????????##############??????????????????????? | | ????????????## <<